fUSD/lending_fUSD_20260331
["ID","MTS","AMOUNT","RATE_DAILY","PERIOD"]
[419148947,1774943859514,-700.0,0.00013889,2]
[419148948,1774943859539,-216.0,0.00013889,2]
[419148949,1774943859561,-84.0,0.00013889,2]
[419148950,1774943861010,-216.0,0.00013889,2]
[419148951,1774943861032,-150.0,0.00013889,2]
[419148952,1774943861056,-634.0,0.0001389,2]
[419148953,1774943864071,-1000.0,0.0001389,2]
[419148954,1774943865548,-1000.0,0.0001389,2]
[419148955,1774943867095,-1000.0,0.0001389,2]
[419148956,1774943868383,-1000.0,0.0001389,2]
[419148957,1774943869557,-1000.0,0.0001389,2]
[419148958,1774943870748,-1000.0,0.0001389,2]
[419148959,1774943871948,-1000.0,0.0001389,2]
[419148960,1774943877781,-1000.0,0.0001389,2]
[419148961,1774943878877,-1000.0,0.0001389,2]
[419148962,1774943879251,-1000.0,0.0001389,2]
[419148963,1774943879618,-1000.0,0.0001389,2]
[419148964,1774943881115,-1000.0,0.0001389,2]
[419148965,1774943882196,-300.0,0.00013889,2]
[419148966,1774943882220,-700.0,0.0001389,2]
[419148967,1774943882545,-1000.0,0.0001389,2]
[419148969,1774943883896,-1000.0,0.0001389,2]
[419148970,1774943885236,-1000.0,0.0001389,2]
[419148971,1774943888104,-1000.0,0.0001389,2]
[419148972,1774943888218,-1000.0,0.0001389,2]
[419148973,1774943889824,-1000.0,0.0001389,2]
[419148974,1774943890868,-1000.0,0.0001389,2]
[419148975,1774943893014,-1000.0,0.0001389,2]
[419148976,1774943901349,-780.0,0.0001389,2]
[419148977,1774943915571,-192.0,0.0001389,2]
[419148982,1774944434219,-228.55060558,0.00013806,2]
[419148983,1774944452577,-166.66,0.00013687,2]
[419148984,1774944452601,-181.68678504,0.00013788,2]
[419148985,1774944452624,-210.98612298,0.00013806,2]
[419148988,1774944555093,-3150.04882254,0.00013585,2]
[419148991,1774944610438,1572.35814449,9.5e-05,3]
[419148993,1774944619257,157.99,6.775e-05,2]
[419148997,1774944632147,-3331.55408255,9.5e-05,3]
[419148998,1774944632198,-1667.75473326,9.5e-05,3]
[419148999,1774944632253,-3513.42115875,9.5e-05,3]
[419149000,1774944632263,-306.77,0.00012093,2]
[419149001,1774944632272,-89.95117746,0.00013585,2]
[419149002,1774944632282,-897.86823299,0.00013806,2]
[419149003,1774944632292,-150.0363523,0.00013806,2]
[419149004,1774944632302,-2000.0,0.00013822,2]
[419149005,1774944632311,-151.0,0.00013853,2]
[419149006,1774944632321,-151.36,0.00013853,2]
[419149007,1774944632330,-1200.0,0.00013889,2]
[419149008,1774944632340,-1200.0,0.00013889,2]
[419149009,1774944632350,-151.0,0.0001389,2]
[419149010,1774944632360,-488.80553906,0.0001389,2]
[419149011,1774944632370,-150.0,0.0001389,2]
[419149012,1774944632380,-166.66,0.00013975,2]
[419149013,1774944632390,-191.13,0.00014148,2]
[419149014,1774944632401,-300.0,0.00014217,2]
[419149015,1774944632412,-300.0,0.00014217,2]
[419149016,1774944632422,-500.0,0.00014218,2]
[419149017,1774944632431,-180.39107811,0.00014248,2]
[419149018,1774944632441,-166.66,0.00014263,2]
[419149019,1774944632451,-173.0,0.00014281,2]
[419149020,1774944632461,-261.0,0.00014289,2]
[419149021,1774944632471,-52524.4091,0.00014381,2]
[419149022,1774944632481,-150.0,0.00014399,2]
[419149023,1774944632493,-150.0,0.000144,2]
[419149024,1774944632504,-192.47243907,0.000144,2]
[419149025,1774944632514,-248.80511267,0.000144,2]
[419149026,1774944632525,-243.33461143,0.000144,2]
[419149027,1774944632536,-150.0,0.000144,2]
[419149028,1774944632547,-150.0,0.000144,2]
[419149029,1774944632561,-150.0,0.000144,2]
[419149030,1774944632571,-150.0,0.000144,2]
[419149031,1774944632581,-150.0,0.000144,2]
[419149032,1774944632592,-315.6941004,0.000144,2]
[419149033,1774944632602,-150.0,0.000144,2]
[419149034,1774944632614,-150.0,0.000144,2]
[419149035,1774944632624,-150.0,0.000144,2]
[419149036,1774944632635,-150.0,0.000144,2]
[419149037,1774944632645,-150.0,0.000144,2]
[419149038,1774944632655,-200.41323812,0.000144,2]
[419149039,1774944632666,-240.15797752,0.000144,2]
[419149040,1774944632676,-1852.42,0.00014407,2]
[419149041,1774944632685,-192.47243907,0.00014416,2]
[419149042,1774944632695,-248.80511267,0.00014416,2]
[419149043,1774944632704,-243.33461143,0.00014416,2]
[419149044,1774944632713,-315.6941004,0.00014416,2]
[419149045,1774944632723,-200.41323812,0.00014416,2]
[419149046,1774944632734,-240.15797752,0.00014416,2]
[419149047,1774944632746,-150.0,0.00014424,2]
[419149048,1774944632756,-150.0,0.00014425,2]
[419149049,1774944632766,-181.68678503,0.00014425,2]
[419149050,1774944632777,-174.904991,0.00014426,7]
[419149051,1774944632786,-311.586751,0.00014429,7]
[419149052,1774944632796,-160.0,0.00014429,7]
[419149053,1774944632806,-189.014882,0.00014429,7]
[419149054,1774944632816,-218.029765,0.00014429,7]
[419149055,1774944632826,-192.47243907,0.00014432,2]
[419149056,1774944632835,-248.80511267,0.00014432,2]
[419149057,1774944632845,-243.33461143,0.00014432,2]
[419149058,1774944632855,-315.6941004,0.00014432,2]
[419149059,1774944632866,-200.41323812,0.00014432,2]
[419149060,1774944632876,-240.15797752,0.00014432,2]
[419149061,1774944632885,-3465.87,0.00014433,2]
[419149062,1774944632895,-150.0,0.00014437,2]
[419149063,1774944632904,-500.0,0.00014448,2]
[419149064,1774944632914,-150.0,0.00014448,2]
[419149065,1774944632923,-192.47243907,0.00014448,2]
[419149066,1774944632933,-248.80511267,0.00014448,2]
[419149067,1774944632943,-243.33461143,0.00014448,2]
[419149068,1774944632953,-315.6941004,0.00014448,2]
[419149069,1774944632962,-200.41323812,0.00014448,2]
[419149070,1774944632972,-240.15797752,0.00014448,2]
[419149071,1774944632982,-150.0,0.0001445,2]
[419149072,1774944632992,-192.47243907,0.00014465,2]
[419149073,1774944633002,-248.80511267,0.00014465,2]
[419149074,1774944633012,-243.33461143,0.00014465,2]
[419149075,1774944633023,-315.6941004,0.00014465,2]
[419149076,1774944633032,-200.41323812,0.00014465,2]
[419149077,1774944633042,-240.15797752,0.00014465,2]
[419149078,1774944633052,-150.0,0.00014472,2]
[419149079,1774944633063,-150.0,0.00014474,2]
[419149080,1774944633073,-150.0,0.00014475,2]
[419149081,1774944633082,-251.434769,0.00014478,7]
[419149082,1774944633092,-260.05467,0.00014478,7]
[419149083,1774944633102,-192.47243907,0.00014481,2]
[419149084,1774944633112,-248.80511267,0.00014481,2]
[419149085,1774944633121,-243.33461143,0.00014481,2]
[419149086,1774944633131,-315.6941004,0.00014481,2]
[419149087,1774944633140,-200.41323812,0.00014481,2]
[419149088,1774944633150,-240.15797752,0.00014481,2]
[419149089,1774944633160,-150.0,0.00014484,2]
[419149090,1774944633171,-150.0,0.00014496,2]
[419149091,1774944633181,-192.47243907,0.00014497,2]
[419149092,1774944633191,-248.80511267,0.00014497,2]
[419149093,1774944633201,-243.33461143,0.00014497,2]
[419149094,1774944633211,-315.6941004,0.00014497,2]
[419149095,1774944633222,-200.41323812,0.00014497,2]
[419149096,1774944633232,-240.15797752,0.00014497,2]
[419149097,1774944633241,-150.0,0.000145,2]
[419149098,1774944633251,-611.77934941,0.00014503,2]
[419149099,1774944633261,-591.73,0.00014504,2]
[419149100,1774944633271,-499.99,0.00014504,2]
[419149101,1774944633282,-2400.0740954,0.00014504,2]
[419149102,1774944633296,-12648.9659046,0.00014504,2]
[419149103,1774944633305,-150.99,0.00014504,2]
[419149104,1774944633315,-3861.21,0.00014504,2]
[419149105,1774944633325,-299.99,0.00014504,2]
[419149106,1774944633336,-150.0,0.00014507,2]
[419149107,1774944633346,-150.0,0.00014512,2]
[419149108,1774944633356,-192.47243907,0.00014513,2]
[419149109,1774944633366,-248.80511267,0.00014513,2]
[419149110,1774944633376,-243.33461143,0.00014513,2]
[419149111,1774944633387,-315.6941004,0.00014513,2]
[419149112,1774944633397,-200.41323812,0.00014513,2]
[419149113,1774944633407,-240.15797752,0.00014513,2]
[419149114,1774944633417,-150.0,0.00014519,2]
[419149115,1774944633427,-395.25,0.00014521,2]
[419149116,1774944633437,-150.0,0.00014525,2]
[419149117,1774944633447,-192.47243907,0.00014529,2]
[419149118,1774944633456,-248.80511267,0.00014529,2]
[419149119,1774944633466,-243.33461143,0.00014529,2]
[419149120,1774944633476,-315.6941004,0.00014529,2]
[419149121,1774944633486,-200.41323812,0.00014529,2]
[419149122,1774944633495,-240.15797752,0.00014529,2]
[419149123,1774944633505,-150.0,0.00014533,2]
[419149124,1774944633516,-150.0,0.00014533,2]
[419149125,1774944633526,-150.0,0.00014543,2]
[419149126,1774944633536,-192.47243907,0.00014545,2]
[419149127,1774944633546,-248.80511267,0.00014545,2]
[419149128,1774944633555,-243.33461143,0.00014545,2]
[419149129,1774944633565,-315.6941004,0.00014545,2]
[419149130,1774944633575,-200.41323812,0.00014545,2]
[419149131,1774944633585,-240.15797752,0.00014545,2]
[419149132,1774944633595,-150.0,0.00014549,2]
[419149133,1774944633605,-150.0,0.0001455,2]
[419149134,1774944633615,-166.66,0.00014551,2]
[419149135,1774944633628,-192.47243907,0.00014562,2]
[419149136,1774944633638,-248.80511267,0.00014562,2]
[419149137,1774944633650,-243.33461143,0.00014562,2]
[419149138,1774944633660,-315.6941004,0.00014562,2]
[419149139,1774944633670,-200.41323812,0.00014562,2]
[419149140,1774944633681,-240.15797752,0.00014562,2]
[419149141,1774944633692,-150.0,0.00014567,2]
[419149142,1774944633703,-150.0,0.00014568,2]
[419149143,1774944633714,-150.0,0.00014575,2]
[419149144,1774944633723,-192.47243907,0.00014578,2]
[419149145,1774944633735,-248.80511267,0.00014578,2]
[419149146,1774944633745,-243.33461143,0.00014578,2]
[419149147,1774944633755,-315.6941004,0.00014578,2]
[419149148,1774944633764,-200.41323812,0.00014578,2]
[419149149,1774944633774,-240.15797752,0.00014578,2]
[419149150,1774944633784,-150.0,0.00014586,2]
[419149151,1774944633794,-150.0,0.00014591,2]
[419149152,1774944633804,-192.47243907,0.00014594,2]
[419149153,1774944633813,-248.80511267,0.00014594,2]
[419149154,1774944633823,-243.33461143,0.00014594,2]
[419149155,1774944633832,-315.6941004,0.00014594,2]
[419149156,1774944633842,-200.41323812,0.00014594,2]
[419149157,1774944633853,-240.15797752,0.00014594,2]
[419149158,1774944633862,-150.0,0.000146,2]
[419149159,1774944633872,-192.47243907,0.0001461,2]
[419149160,1774944633882,-248.80511267,0.0001461,2]
[419149161,1774944633891,-243.33461143,0.0001461,2]
[419149162,1774944633901,-315.6941004,0.0001461,2]
[419149163,1774944633911,-200.41323812,0.0001461,2]
[419149164,1774944633920,-240.15797752,0.0001461,2]
[419149165,1774944633931,-150.0,0.00014613,2]
[419149166,1774944633940,-150.0,0.00014615,2]
[419149167,1774944633950,-150.0,0.00014623,2]
[419149168,1774944633959,-150.0,0.00014625,2]
[419149169,1774944633969,-192.47243907,0.00014626,2]
[419149170,1774944633979,-248.80511267,0.00014626,2]
[419149171,1774944633988,-243.33461143,0.00014626,2]
[419149172,1774944633996,-315.6941004,0.00014626,2]
[419149173,1774944634006,-200.41323812,0.00014626,2]
[419149174,1774944634015,-240.15797752,0.00014626,2]
[419149175,1774944634025,-150.0,0.00014639,2]
[419149176,1774944634035,-192.47243907,0.00014642,2]
[419149177,1774944634045,-248.80511267,0.00014642,2]
[419149178,1774944634055,-243.33461143,0.00014642,2]
[419149179,1774944634065,-315.6941004,0.00014642,2]
[419149180,1774944634075,-200.41323812,0.00014642,2]
[419149181,1774944634084,-240.15797752,0.00014642,2]
[419149182,1774944634094,-150.0,0.0001465,2]
[419149183,1774944634104,-150.0,0.00014653,2]
[419149184,1774944634114,-192.47243907,0.00014659,2]
[419149185,1774944634124,-248.80511267,0.00014659,2]
[419149186,1774944634133,-243.33461143,0.00014659,2]
[419149187,1774944634143,-315.6941004,0.00014659,2]
[419149188,1774944634153,-200.41323812,0.00014659,2]
[419149190,1774944634163,-240.15797752,0.00014659,2]
[419149192,1774944634173,-150.0,0.0001466,2]
[419149194,1774944634183,-150.0,0.00014663,2]
[419149196,1774944634193,-150.0,0.00014667,2]
[419149198,1774944634203,-150.0,0.00014667,2]
[419149200,1774944634213,-150.0,0.00014667,2]
[419149202,1774944634223,-192.47243907,0.00014675,2]
[419149204,1774944634233,-248.80511267,0.00014675,2]
[419149206,1774944634243,-243.33461143,0.00014675,2]
[419149208,1774944634253,-315.6941004,0.00014675,2]
[419149210,1774944634262,-200.41323812,0.00014675,2]
[419149212,1774944634272,-240.15797752,0.00014675,2]
[419149214,1774944634282,-150.0,0.00014675,2]
[419149216,1774944634292,-150.0,0.00014687,2]
[419149218,1774944634302,-192.47243907,0.00014691,2]
[419149220,1774944634312,-248.80511267,0.00014691,2]
[419149222,1774944634322,-243.33461143,0.00014691,2]
[419149224,1774944634332,-315.6941004,0.00014691,2]
[419149226,1774944634342,-200.41323812,0.00014691,2]
[419149228,1774944634352,-240.15797752,0.00014691,2]
[419149230,1774944634362,-150.0,0.00014698,2]
[419149232,1774944634371,-150.0,0.000147,2]
[419149234,1774944634381,-192.47243907,0.00014707,2]
[419149236,1774944634391,-248.80511267,0.00014707,2]
[419149238,1774944634401,-243.33461143,0.00014707,2]
[419149240,1774944634411,-315.6941004,0.00014707,2]
[419149242,1774944634421,-200.41323812,0.00014707,2]
[419149243,1774944634430,-240.15797752,0.00014707,2]
[419149244,1774944634439,-150.0,0.0001471,2]
[419149245,1774944634449,-5000.0,0.00014711,2]
[419149246,1774944634458,-165.31,0.00014713,8]
[419149247,1774944634468,-15936.07760002,0.00014719,2]
[419149248,1774944634481,-1254.41808677,0.00014719,2]
[419149260,1774944634635,-1715.35927846,0.00014719,2]
[419149262,1774944634651,-1864.59913914,0.00014719,2]
[419149264,1774944634662,-16121.05247707,0.00014719,2]
[419149274,1774944639409,-110.96243675,0.00014719,2]
[419149275,1774944639418,-488.80553906,0.00014719,2]
[419149276,1774944639427,-32.1585025,0.00014719,2]
[419149277,1774944639446,-118.8414975,0.00014719,2]
[419149278,1774944639456,-150.0,0.0001472,2]
[419149279,1774944639465,-271.09401252,0.0001472,2]
[419149280,1774944639548,-605.91046908,0.0001472,2]
[419149281,1774944639562,-4976.93520305,0.0001472,2]
[419149282,1774944639572,-150.0,0.0001472,2]
[419149283,1774944639582,-500.0,0.00014722,2]
[419149284,1774944639592,-192.47243907,0.00014723,2]
[419149285,1774944639602,-248.80511267,0.00014723,2]
[419149286,1774944639612,-243.33461143,0.00014723,2]
[419149287,1774944639621,-315.6941004,0.00014723,2]
[419149288,1774944639630,-200.41323812,0.00014723,2]
[419149289,1774944639639,-240.15797752,0.00014723,2]
[419149290,1774944639649,-150.0,0.00014725,2]
[419149291,1774944639658,-688.94111178,0.00014731,2]
[419149292,1774944639670,-993.34152341,0.00014731,2]
[419149293,1774944639686,-501.61460773,0.00014731,2]
[419149298,1774944640722,-151.0,0.00014731,2]
[419149299,1774944640733,-331.79510806,0.00014731,2]
[419149300,1774944640746,-418.82489194,0.00014731,2]
[419149301,1774944640762,-185.49275708,0.00014731,2]
[419149302,1774944640772,-150.0,0.00014734,2]
[419149303,1774944640782,-150.0,0.00014735,2]
[419149304,1774944640791,-150.0,0.00014737,2]
[419149305,1774944640802,-192.47243907,0.00014739,2]
[419149306,1774944640812,-248.80511267,0.00014739,2]
[419149307,1774944640821,-243.33461143,0.00014739,2]
[419149308,1774944640830,-315.6941004,0.00014739,2]
[419149309,1774944640840,-200.41323812,0.00014739,2]
[419149310,1774944640849,-240.15797752,0.00014739,2]
[419149311,1774944640858,-150.0,0.0001475,2]
[419149312,1774944640868,-192.47243907,0.00014756,2]
[419149313,1774944640877,-248.80511267,0.00014756,2]
[419149314,1774944640887,-184.54878835,0.00014756,2]
[419149315,1774944641387,-1.10371125,0.00014731,2]
[419149316,1774944641399,-149.89628875,0.00014731,2]
[419149317,1774944641409,-58.78582308,0.00014756,2]
[419149318,1774944641419,-315.6941004,0.00014756,2]
[419149319,1774944641429,-200.41323812,0.00014756,2]
[419149320,1774944641438,-240.15797752,0.00014756,2]
[419149321,1774944641447,-150.0,0.00014758,2]
[419149322,1774944641456,-1903.60866516,0.00014763,2]
[419149323,1774944641465,-192.47243907,0.00014772,2]
[419149324,1774944641474,-248.80511267,0.00014772,2]
[419149325,1774944641483,-243.33461143,0.00014772,2]
[419149326,1774944641492,-291.90629858,0.00014772,2]
[419149327,1774944641507,-23.78780182,0.00014772,2]
[419149328,1774944641516,-200.41323812,0.00014772,2]
[419149329,1774944641525,-240.15797752,0.00014772,2]
[419149330,1774944641534,-512.57744125,0.00014772,2]
[419149331,1774944641545,-633.52355875,0.00014772,2]
[419149332,1774944641554,-73.74092399,0.00014772,2]
[419149333,1774944643316,-151.0,0.00014772,2]
[419149334,1774944643327,-76.25907601,0.00014772,2]
[419149335,1774944643337,-150.0,0.00014775,2]
[419149336,1774944643347,-150.0,0.00014782,2]
[419149337,1774944643357,-192.47243907,0.00014788,2]
[419149338,1774944643367,-248.80511267,0.00014788,2]
[419149339,1774944643377,-243.33461143,0.00014788,2]
[419149340,1774944643387,-315.6941004,0.00014788,2]
[419149341,1774944643397,-200.41323812,0.00014788,2]
[419149342,1774944643407,-240.15797752,0.00014788,2]
[419149343,1774944643416,-150.0,0.000148,2]
[419149344,1774944643426,-150.0,0.000148,2]
[419149345,1774944643437,-150.0,0.000148,2]
[419149346,1774944643446,-192.47243907,0.00014804,2]
[419149347,1774944643456,-248.80511267,0.00014804,2]
[419149348,1774944643466,-243.33461143,0.00014804,2]
[419149349,1774944643475,-315.6941004,0.00014804,2]
[419149350,1774944643485,-200.41323812,0.00014804,2]
[419149351,1774944643494,-240.15797752,0.00014804,2]
[419149352,1774944643504,-150.0,0.00014806,2]
[419149353,1774944643513,-150.0,0.00014809,2]
[419149354,1774944643523,-150.0,0.0001481,2]
[419149355,1774944643532,-500.0,0.0001481,2]
[419149356,1774944643541,-309.29086172,0.0001481,2]
[419149357,1774944643551,-500.0,0.0001481,2]
[419149358,1774944643561,-24.39707027,0.0001481,2]
[419149359,1774944643593,-475.60292973,0.0001481,2]
[419149360,1774944643603,-112.86611376,0.0001481,2]
[419149361,1774944643675,-387.13388624,0.0001481,2]
[419149362,1774944643686,-1725.55384257,0.00014811,2]
[419149363,1774944643697,-6476.04433623,0.00014811,2]
[419149364,1774944643710,-1854.69999999,0.00014811,2]
[419149373,1774944646424,-35068.7024931,0.00014811,2]
[419149374,1774944646477,-444.58999998,0.00014811,2]
[419149375,1774944646533,-1165.00275632,0.00014811,2]
[419150141,1774945564915,150.0,0.0002,120]
[419150146,1774945653346,-185.92780774,0.00011507,2]
[419150157,1774945746102,-1363.99219226,0.00011507,2]
[419150158,1774945746123,-211.92577952,0.00011786,2]
[419150159,1774945746144,-250.0,0.00011926,2]
[419150160,1774945746165,-1000.0,0.00012299,2]
[419150161,1774945746185,-1200.0,0.00012656,2]
[419150162,1774945746204,-409.0,0.00012657,2]
[419150163,1774945746224,-300.0,0.00012657,2]
[419150164,1774945746244,-193.0,0.00012658,2]
[419150165,1774945746263,-255.0,0.00012658,2]
[419150166,1774945746284,-5000.0,0.00012658,2]
[419150167,1774945746304,-600.0,0.00012658,2]
[419150168,1774945746322,-135.19033869,0.00012658,2]
[419150169,1774945752078,-164.80966131,0.00012658,2]
[419150170,1774945752100,-918.4,0.00012658,2]
[419150171,1774945752122,-276.26849862,0.00012932,2]
[419150186,1774945832204,-250.7070206,0.00012932,2]
[419150187,1774945832216,-391.42448078,0.00012932,2]
[419150188,1774945832225,-189.36,0.0001298,2]
[419150189,1774945832234,-250.0,0.00013,2]
[419150190,1774945832244,-201.2977185,0.00013,2]
[419150191,1774945832252,-150.0,0.000132,2]
[419150192,1774945832262,-918.4,0.00013205,2]
[419150193,1774945832271,-150.0,0.00013351,2]
[419150194,1774945832280,-1500.0,0.00013359,2]
[419150195,1774945832289,-200.0,0.00013363,2]
[419150196,1774945832298,-151.12,0.00013446,2]
[419150197,1774945832307,-918.4,0.00013479,2]
[419150198,1774945832317,-151.0,0.00013679,2]
[419150199,1774945832326,-250.707,0.0001369,2]
[419150200,1774945832335,-150.0,0.0001369,7]
[419150201,1774945832344,-150.0,0.00013699,2]
[419150202,1774945832353,-166.67,0.00013709,2]
[419150203,1774945832363,-918.4,0.00013753,2]
[419150204,1774945832372,-150.0,0.00013973,2]
[419150205,1774945832381,-54.38034576,0.00014027,2]
[419150206,1774945832392,-750.0,0.00014027,2]
[419150207,1774945832403,-114.01965424,0.00014027,2]
[419150208,1774945832412,-278.23852347,0.00014117,2]
[419150209,1774945832421,-578.05975787,0.00014208,2]
[419150210,1774945832436,-621.94024213,0.00014208,2]
[419150211,1774945832445,-210.33975787,0.00014209,7]
[419150212,1774945832457,-56.31109913,0.00014209,7]
[419150213,1774945832466,-160.0,0.00014209,7]
[419150214,1774945832475,-408.828575,0.00014209,7]
[419150215,1774945832484,-657.657151,0.00014209,7]
[419150216,1774945832494,-160.0,0.0001421,7]
[419150217,1774945832503,-255.828069,0.0001421,7]
[419150218,1774945832512,-351.656138,0.0001421,7]
[419150219,1774945832522,-160.0,0.0001421,7]
[419150220,1774945832531,-363.091614,0.0001421,7]
[419150222,1774945832540,-566.183229,0.0001421,7]
[419150224,1774945832550,-160.0,0.0001421,7]
[419150226,1774945832559,-350.953797,0.0001421,7]
[419150228,1774945832568,-430.37055832,0.0001421,7]
[419150231,1774945832579,-111.53703568,0.0001421,7]
[419150233,1774945832588,-150.0,0.00014226,2]
[419150234,1774945832598,-150.0,0.00014227,2]
[419150236,1774945832608,-150.0,0.00014227,2]
[419150238,1774945832618,-180.06761246,0.00014227,2]
[419150240,1774945832627,-184.11578337,0.00014227,2]
[419150242,1774945832637,-150.0,0.00014227,2]
[419150245,1774945832647,-150.0,0.00014227,2]
[419150247,1774945832657,-233.61363429,0.00014227,2]
[419150248,1774945832666,-150.0,0.00014227,2]
[419150251,1774945832676,-150.0,0.00014227,2]
[419150254,1774945832685,-150.0,0.00014227,2]
[419150255,1774945832695,-150.0,0.00014227,2]
[419150256,1774945832704,-150.0,0.00014227,2]
[419150257,1774945832714,-150.0,0.00014227,2]
[419150258,1774945832723,-177.71690336,0.00014227,2]
[419150259,1774945832732,-200.55908303,0.00014227,2]
[419150260,1774945832742,-321.26249,0.0001424,7]
[419150261,1774945832752,-184.11578337,0.00014243,2]
[419150262,1774945832761,-180.06761246,0.00014243,2]
[419150263,1774945832770,-233.61363429,0.00014243,2]
[419150264,1774945832782,-177.71690336,0.00014243,2]
[419150265,1774945832792,-150.0,0.00014244,2]
[419150266,1774945832802,-259.712347,0.00014246,7]
[419150267,1774945832812,-160.0,0.00014246,7]
[419150268,1774945832822,-382.14969,0.00014246,7]
[419150269,1774945832833,-604.29938,0.00014246,7]
[419150270,1774945832844,-150.0,0.00014249,2]
[419150271,1774945832854,-500.0,0.00014249,2]
[419150272,1774945832864,-180.06761246,0.00014259,2]
[419150273,1774945832873,-184.11578337,0.00014259,2]
[419150274,1774945832883,-233.61363429,0.00014259,2]
[419150275,1774945832892,-177.71690336,0.00014259,2]
[419150276,1774945832904,-150.0,0.0001426,2]
[419150277,1774945832913,-150.0,0.0001426,2]
[419150278,1774945832923,-150.0,0.00014261,2]
[419150279,1774945832933,-150.0,0.0001427,2]
[419150280,1774945832945,-160.61710734,0.00014272,2]
[419150281,1774945832956,-216.24645974,0.00014272,2]
[419150282,1774945832965,-151.0,0.00014272,2]
[419150283,1774945832975,-151.0,0.00014272,2]
[419150284,1774945832983,-151.0,0.00014272,2]
[419150285,1774945832994,-151.0,0.00014272,2]
[419150286,1774945833003,-180.06761246,0.00014275,2]
[419150287,1774945833012,-184.11578337,0.00014275,2]
[419150288,1774945833022,-233.61363429,0.00014275,2]
[419150289,1774945833031,-177.71690336,0.00014275,2]
[419150290,1774945833040,-150.0,0.00014276,2]
[419150291,1774945833049,-300.0,0.00014278,2]
[419150292,1774945833058,-195.0,0.00014278,2]
[419150293,1774945833067,-150.0,0.00014278,2]
[419150294,1774945833076,-180.06761246,0.00014291,2]
[419150295,1774945833085,-184.11578337,0.00014291,2]
[419150296,1774945833095,-233.61363429,0.00014291,2]
[419150297,1774945833103,-177.71690336,0.00014291,2]
[419150298,1774945833114,-150.0,0.00014291,2]
[419150299,1774945833123,-150.0,0.00014292,2]
[419150300,1774945833132,-150.0,0.00014293,2]
[419150301,1774945833142,-150.0,0.00014295,2]
[419150302,1774945833151,-918.4,0.00014301,2]
[419150303,1774945833160,-180.06761246,0.00014307,2]
[419150304,1774945833169,-184.11578337,0.00014307,2]
[419150305,1774945833178,-233.61363429,0.00014307,2]
[419150306,1774945833188,-177.71690336,0.00014307,2]
[419150307,1774945833200,-150.0,0.00014309,2]
[419150308,1774945833210,-150.0,0.00014313,2]
[419150309,1774945833219,-180.06761246,0.00014323,2]
[419150310,1774945833228,-184.11578337,0.00014323,2]
[419150311,1774945833237,-233.61363429,0.00014323,2]
[419150312,1774945833247,-177.71690336,0.00014323,2]
[419150313,1774945833258,-150.0,0.00014324,2]
[419150314,1774945833267,-150.0,0.00014325,2]
[419150315,1774945833277,-150.0,0.00014328,2]
[419150316,1774945833288,-150.0,0.00014329,2]
[419150317,1774945833297,-150.0,0.00014334,2]
[419150318,1774945833308,-180.06761246,0.00014339,2]
[419150319,1774945833319,-184.11578337,0.00014339,2]
[419150320,1774945833330,-233.61363429,0.00014339,2]
[419150321,1774945833340,-177.71690336,0.00014339,2]
[419150322,1774945833349,-150.0,0.0001434,2]
[419150323,1774945833359,-150.0,0.00014341,2]
[419150324,1774945833368,-180.06761246,0.00014355,2]
[419150325,1774945833377,-184.11578337,0.00014355,2]
[419150326,1774945833386,-233.61363429,0.00014355,2]
[419150327,1774945833396,-177.71690336,0.00014355,2]
[419150328,1774945833405,-150.0,0.00014356,2]
[419150329,1774945833415,-150.0,0.00014356,2]
[419150330,1774945833424,-150.0,0.00014358,2]
[419150331,1774945833434,-150.0,0.00014362,2]